Cogmind - Beta 14 @@@ ROGUE MODE // 2025.01.19 @ 13:51:54 Player: abnormality Result: Self-destructed Performance ------------- Evolutions (2) 1000 Regions Visited (6) 1200 Robots Destroyed (9) 45 Value Destroyed (80) 80 Prototype IDs (23) 460 Alien Tech Used (0) 0 Bonus (500) 500 TOTAL SCORE: 3285 Bonus ------- Entered Garrisons 200 Aligned with FarCom 300 Cogmind --------- Core Integrity 457/550 Matter 255/300 Energy 100/100 System Corruption 0% Temperature Cool (0) Movement Flying (40) Location -8/Garrison Parts ------- > --- POWER (2) -------- (None) > --- PROPULSION (4) --- Flight Unit > --- UTILITY (3) ------ (None) > --- WEAPON (2) ------- (None) > --- INVENTORY (5) ---- Improved Heat Sink Improved Terrain Scan Processor Improved Power Shielding Skeleton Box Mining Laser Peak State ------------ > --- POWER ------------ Light Nuclear Core > --- PROPULSION ------- Flight Unit Flight Unit Flight Unit Flight Unit > --- UTILITY ---------- Improved Heat Sink Improved Power Shielding Skeleton Box > --- WEAPON ----------- Light Assault Rifle > --- INVENTORY -------- Flight Unit Mining Laser [Rating: 20] Favorites ----------- Power Light Ion Engine Engine Light Ion Engine Power Core Light Nuclear Core Propulsion Flight Unit Treads Light Treads Flight Unit Flight Unit Utility Seismic Detector Device Seismic Detector Storage Small Storage Unit Protection Improved Power Shielding Weapon Light Assault Rifle Energy Gun Small Laser Ballistic Gun Light Assault Rifle Build | -11 -10 -10 -10 -9 -8 -8 ------- Run | Yrd Mat Min Exi Min Mat Gar Slots Evolved 4 | . . . . . 4 . Power 1 | . . . . . 1 . Propulsion 2 | . . . . . 2 . Utility 1 | . . . . . 1 . Weapon . | . . . . . . . Parts Attached 21 | 7 4 2 1 1 5 1 Power 3 | 1 1 . . . 1 . Engine 2 | 1 1 . . . . . Core 1 | . . . . . 1 . Reactor . | . . . . . . . Propulsion 10 | 2 2 2 . 1 2 1 Treads 2 | 2 . . . . . . Leg . | . . . . . . . Wheel . | . . . . . . . Hover . | . . . . . . . Flight 8 | . 2 2 . 1 2 1 Utility 5 | 2 . . 1 . 2 . Device 3 | 1 . . 1 . 1 . Storage 1 | 1 . . . . . . Processor . | . . . . . . . Hackware . | . . . . . . . Protection 1 | . . . . . 1 . Artifact . | . . . . . . . Weapon 3 | 2 1 . . . . . Energy Gun 1 | 1 . . . . . . Energy Cannon . | . . . . . . . Ballistic Gun 2 | 1 1 . . . . . Ballistic Cannon . | . . . . . . . Launcher . | . . . . . . . Special Weapon . | . . . . . . . Impact Weapon . | . . . . . . . Slashing Weapon . | . . . . . . . Piercing Weapon . | . . . . . . . Special Melee Weapon . | . . . . . . . Unidentified Prototypes 1 | . . . 1 . . . Parts Lost 9 | . . . . 4 1 4 Power 1 | . . . . 1 . . Propulsion 5 | . . . . 1 1 3 Utility 1 | . . . . 1 . . Weapon 2 | . . . . 1 . 1 Highest Loss Streak 4 | . . . . 4 1 4 To Critical Strikes . | . . . . . . . Average Slot Usage (%) 81 | . 95 85 90 82 50 68 Engine 8 | . 14 14 14 8 . . Core 2 | . . . . . 3 8 Treads 4 | . 16 . . . . . Flight 23 | . 11 28 28 26 25 29 Device 16 | . 14 14 19 22 10 16 Storage 2 | . 9 . . . . . Protection 1 | . . . . . 1 7 Energy Gun 2 | . 8 . . . . . Ballistic Gun 18 | . 19 28 28 22 9 7 Peak Build Rating 20 | 7 7 6 12 12 20 20 Average Rating 9 | 5 6 6 8 10 12 17 On Entrance 8 | . 7 6 6 12 9 19 Naked Turns . | . . . . . . . Heaviest Build 13 | 13 13 6 8 8 11 11 Greatest Support 40 | 40 40 8 8 8 16 16 Greatest Overweight (x) 1 | . . . . . . 1 Average Overweight (x) . | . . . . . . . Largest Inventory Capacity 8 | 8 8 5 5 5 5 5 Average Capacity 5 | 7 6 5 5 5 5 5 Most Carried 6 | 3 6 5 5 5 5 5 Average Carried 3 | 1 3 4 4 4 3 2 Final Capacity 8 | 8 5 5 5 5 5 5 Final Carried 5 | 2 5 5 4 4 3 5 Class Distribution -------------------- 43% | Scavenger-Mutant 40% | Mutant 16% | Scavenger-Sprinter Dominant Class ---------------- Scavenger-Mutant | -10/Materials Scavenger-Mutant | -10/Mines Scavenger-Mutant | -10/Exiles Scavenger-Mutant | -9/Mines Mutant | -8/Materials Scavenger-Sprinter | -8/Garrison Resources | -11 -10 -10 -10 -9 -8 -8 ----------- Run | Yrd Mat Min Exi Min Mat Gar Matter Collected 390 | 278 19 37 . 56 . . Remotely . | . . . . . . . Salvage Created 190 | 106 47 37 . . . . Parts 23 | 7 10 6 . . . . Haulers Intercepted . | . . . . . . . Recyclers Shooed . | . . . . . . . Parts Field Recycled . | . . . . . . . Retrieved Matter . | . . . . . . . Parts Self-Destructed . | . . . . . . . Prevented . | . . . . . . . Kills | -11 -10 -10 -10 -9 -8 -8 ------- Run | Yrd Mat Min Exi Min Mat Gar Combat Hostiles Destroyed 6 | . 3 3 . . . . Guns 6 | . 3 3 . . . . Classes Destroyed 3 | 2 1 . . . . . Tunneler 2 | 2 . . . . . . Recycler 1 | 1 . . . . . . Swarmer 6 | . 3 3 . . . . Best Kill Streak 3 | 2 3 3 . . . . Combat Bots Only 3 | . 3 3 . . . . Max Kills in Single Turn 2 | 1 1 2 . . . . Gunslinging . | . . . . . . . Exploded . | . . . . . . . Melee . | . . . . . . . Uniques/NPCs Destroyed . | . . . . . . . Combat | -11 -10 -10 -10 -9 -8 -8 -------- Run | Yrd Mat Min Exi Min Mat Gar Hostile Shots Fired 78 | . 7 24 . 12 6 29 Missed 30 | . 1 8 . 4 2 15 Damage Taken 607 | . 47 126 . 228 30 176 Core 202 | . . 25 . 84 7 86 Absorbed by Shields 10 | . . . . . . 10 Redirected to Shielding 15 | . . . . . 5 10 Core Remaining (%) 78 | 100 . . . 56 . . Volleys Fired 23 | 8 6 9 . . . . Largest 2 | 2 2 2 . . . . Hottest 60 | 60 60 40 . . . . Shots Fired 46 | 16 12 18 . . . . Gun 46 | 16 12 18 . . . . Cannon . | . . . . . . . Launcher . | . . . . . . . Special . | . . . . . . . Kinetic 35 | 8 9 18 . . . . Thermal 11 | 8 3 . . . . . Explosive . | . . . . . . . Electromagnetic . | . . . . . . . Robot Hit Streak 7 | 2 7 2 . . . . Robot Miss Streak 4 | 2 1 4 . . . . Penetration Max . | . . . . . . . Secondary Targets 1 | . 1 . . . . . Max Gunslinging Chain 1 | . 1 . . . . . Shots Hit Robots 23 | 7 9 7 . . . . Core Hits 16 | 5 6 5 . . . . Critical Kills 1 | . . 1 . . . . Critical Parts Destroyed . | . . . . . . . Critical Strikes 1 | . . 1 . . . . Destroy 1 | . . 1 . . . . Melee Attacks . | . . . . . . . Impact . | . . . . . . . Slashing . | . . . . . . . Piercing . | . . . . . . . Sneak Attacks . | . . . . . . . Combat Hostiles . | . . . . . . . Follow-up Attacks . | . . . . . . . Damage Inflicted 227 | 74 84 69 . . . . Guns 227 | 74 84 69 . . . . Cannons . | . . . . . . . Explosions . | . . . . . . . Melee . | . . . . . . . Ramming . | . . . . . . . Kinetic 136 | 18 49 69 . . . . Thermal 91 | 56 35 . . . . . Explosive . | . . . . . . . Electromagnetic . | . . . . . . . Impact . | . . . . . . . Slashing . | . . . . . . . Piercing . | . . . . . . . Highest Corruption 1 | . 1 1 1 1 . . Average Corruption 1 | . 1 1 1 1 . . Corruption Purged . | . . . . . . . Corruption Blocked . | . . . . . . . Effects 2 | . . 1 1 . . . Message Errors 1 | . . 1 . . . . Matter Fused 1 | . . . 1 . . . Overload Shots . | . . . . . . . Overflow Damage . | . . . . . . . Projectiles . | . . . . . . . Explosions . | . . . . . . . Melee . | . . . . . . . Knockbacks . | . . . . . . . Impact . | . . . . . . . Kinetic . | . . . . . . . Secondary . | . . . . . . . Self-Inflicted Damage . | . . . . . . . Shots . | . . . . . . . Rammed . | . . . . . . . Targets Rammed . | . . . . . . . Kicked . | . . . . . . . Crushed . | . . . . . . . Highest Temperature 40 | 40 20 8 . 2 . . Average Temperature 9 | 16 8 4 . 1 . . Received Heat Transfer 148 | . . . . 49 . 99 Siege Activations . | . . . . . . . Robots Corrupted . | . . . . . . . Combat Hostiles . | . . . . . . . Parts Fried . | . . . . . . . Impact Corruptions . | . . . . . . . Robots Melted . | . . . . . . . Combat Hostiles . | . . . . . . . Parts Melted . | . . . . . . . Heat Transferred 200 | 125 75 . . . . . Parts Sabotaged . | . . . . . . . Parts Stolen . | . . . . . . . Parts Stripped . | . . . . . . . Power Chain Reactions . | . . . . . . . Alert | -11 -10 -10 -10 -9 -8 -8 ------- Run | Yrd Mat Min Exi Min Mat Gar Peak Influence 121 | 15 94 121 . 20 31 73 Initial 36 | . 9 36 . . 7 13 Average 37 | 6 57 108 . 5 11 39 Maximum Alert Level . | . . . . . . . Low Security (%) 100 | 100 100 100 . 100 100 100 Level 1 . | . . . . . . . Level 2 . | . . . . . . . Level 3 . | . . . . . . . Level 4 . | . . . . . . . Level 5 . | . . . . . . . High Security . | . . . . . . . Max Security . | . . . . . . . Squads Dispatched 1 | . 1 . . . . . Investigation . | . . . . . . . Extermination . | . . . . . . . Reinforcement 1 | . 1 . . . . . Assault . | . . . . . . . Garrison . | . . . . . . . Intercept . | . . . . . . . Searches Triggered . | . . . . . . . Construction Impeded . | . . . . . . . Haulers Reinforced . | . . . . . . . Active Scanning Responses . | . . . . . . . Cargo Convoy Interrupts . | . . . . . . . Stealth | -11 -10 -10 -10 -9 -8 -8 --------- Run | Yrd Mat Min Exi Min Mat Gar Distress Signals . | . . . . . . . Communications Jammed . | . . . . . . . Distress Signals . | . . . . . . . Times Spotted 54 | . 5 4 . 28 4 13 Peak Tracking Total 19 | . 3 3 . 19 4 7 Tactical Retreats 3 | . . . . 2 . 1 Traps | -11 -10 -10 -10 -9 -8 -8 ------- Run | Yrd Mat Min Exi Min Mat Gar Traps Triggered 4 | . . . . . . 4 Indirectly . | . . . . . . . Trap Hack Attempts . | . . . . . . . Triggered . | . . . . . . . Disarmed . | . . . . . . . Reprogrammed . | . . . . . . . Reused . | . . . . . . . Traps Extracted . | . . . . . . . Installed . | . . . . . . . Triggered . | . . . . . . . Machines | -11 -10 -10 -10 -9 -8 -8 ---------- Run | Yrd Mat Min Exi Min Mat Gar Machines Disabled . | . . . . . . . Max in Single Turn . | . . . . . . . Machines Repaired . | . . . . . . . Machines Dismantled . | . . . . . . . Machines Sabotaged . | . . . . . . . Overloaded Fab Kills . | . . . . . . . Hacking | -11 -10 -10 -10 -9 -8 -8 --------- Run | Yrd Mat Min Exi Min Mat Gar Machines Accessed 7 | . 3 . 2 . 2 . Terminals 4 | . 3 . . . 1 . Fabricators . | . . . . . . . Repair Stations . | . . . . . . . Recycling Units . | . . . . . . . Scanalyzers . | . . . . . . . Garrison Access 1 | . . . . . 1 . Total Hacks 11 | . 5 . 2 . 4 . Successful 8 | . 3 . 2 . 3 . Failed 3 | . 2 . . . 1 . Catastrophic . | . . . . . . . Database Lockouts . | . . . . . . . Manual 1 | . . . 1 . . . Terminals 7 | . 5 . . . 2 . Fabricators . | . . . . . . . Repair Stations . | . . . . . . . Recycling Units . | . . . . . . . Scanalyzers . | . . . . . . . Garrison Access 2 | . . . . . 2 . Terminal Hacks 7 | . 3 . 2 . 2 . Record 2 | . 1 . 1 . . . Emergency Access Points 2 | . 2 . . . . . Alert Level 1 | . . . . . 1 . Zone Layout 1 | . . . . . 1 . Derelict Proto ID Bank 1 | . . . 1 . . . Fabricator Hacks . | . . . . . . . Repair Station Hacks . | . . . . . . . Recycling Unit Hacks . | . . . . . . . Scanalyzer . | . . . . . . . Garrison Access Hacks 1 | . . . . . 1 . Unlock Access 1 | . . . . . 1 . Unauthorized Hacks . | . . . . . . . Terminals . | . . . . . . . Fabricators . | . . . . . . . Repair Stations . | . . . . . . . Recycling Units . | . . . . . . . Scanalyzers . | . . . . . . . Garrison Access . | . . . . . . . Data Cores Recovered . | . . . . . . . Used . | . . . . . . . Hacking Detections 3 | . 1 . . . 2 . Full Trace Events 1 | . 1 . . . . . Feedback Events 1 | . 1 . . . . . Corruption 1 | . 1 . . . . . Feedback Blocked . | . . . . . . . Robot Schematics Acquired . | . . . . . . . Robots Built . | . . . . . . . Authchips . | . . . . . . . Time . | . . . . . . . Total Robot Build Rating . | . . . . . . . Part Schematics Acquired . | . . . . . . . Parts Built . | . . . . . . . Authchips . | . . . . . . . Time . | . . . . . . . Total Part Build Rating . | . . . . . . . Parts Repaired . | . . . . . . . Time . | . . . . . . . Parts Recycled . | . . . . . . . Recycled Matter . | . . . . . . . Retrieved Matter . | . . . . . . . Retrieved Components . | . . . . . . . Parts Scanalyzed . | . . . . . . . Part Schematics Acquired . | . . . . . . . Parts Damaged . | . . . . . . . Bothacking | -11 -10 -10 -10 -9 -8 -8 ------------ Run | Yrd Mat Min Exi Min Mat Gar Used RIF Installer . | . . . . . . . Robots Hacked . | . . . . . . . Non-combat . | . . . . . . . Combat . | . . . . . . . Robot Hacks Applied . | . . . . . . . Relay Couplers Released . | . . . . . . . Fabnet Peak Effective % . | . . . . . . . Robots Rewired . | . . . . . . . Allies Hacked . | . . . . . . . Hacks Repelled . | . . . . . . . Allies | -11 -10 -10 -10 -9 -8 -8 -------- Run | Yrd Mat Min Exi Min Mat Gar Total Allies . | . . . . . . . Largest Group . | . . . . . . . Highest-Rated Group . | . . . . . . . Highest-Rated Ally . | . . . . . . . Total Orders . | . . . . . . . Ally Attacks . | . . . . . . . Total Damage . | . . . . . . . Kills . | . . . . . . . Allies Corrupted . | . . . . . . . Allies Melted . | . . . . . . . Intel | -11 -10 -10 -10 -9 -8 -8 ------- Run | Yrd Mat Min Exi Min Mat Gar Robot Analysis Total . | . . . . . . . Derelict Logs Recovered 1 | . . . . 1 . . Drone Launches . | . . . . . . . Drone Recoveries . | . . . . . . . Exploration | -11 -10 -10 -10 -9 -8 -8 ------------- Run | Yrd Mat Min Exi Min Mat Gar Turns Passed 701 | 115 147 65 106 80 53 135 Spaces Moved 1111 | 51 162 93 278 211 124 192 Core 4 | 4 . . . . . . Treads 92 | 47 45 . . . . . Legs . | . . . . . . . Wheels . | . . . . . . . Hover . | . . . . . . . Flight 1015 | . 117 93 278 211 124 192 Fastest Speed 31 | 50 37 37 37 37 31 31 Average Speed 47 | 151 71 37 37 37 35 40 Slowest Speed 160 | 160 160 37 37 40 37 120 Overloaded Moves . | . . . . . . . Propulsion Burnouts . | . . . . . . . Robots Hopped 5 | . . . . 4 . 1 Cave-ins Triggered . | . . . . . . . Time Travels 1 | . . . 1 . . . Exploration Rate (%) 29 | 6 33 25 46 45 15 35 Regions Visited 6 Branch Regions 3 Pre-discovered Areas 2 | . . 1 . 1 . . Known Exits Taken 1 | . . . . . 1 . Unknown Exits Taken 5 | 1 1 1 1 1 . . Scrap Searched 1 | . . . . 1 . . Spaces Dug . | . . . . . . . Terrain Destroyed . | . . . . . . . Melee . | . . . . . . . Projectile . | . . . . . . . AOE . | . . . . . . . Terrain Rammed . | . . . . . . . Walls Destroyed . | . . . . . . . Machines Disabled . | . . . . . . . Actions | -11 -10 -10 -10 -9 -8 -8 --------- Run | Yrd Mat Min Exi Min Mat Gar Total 1239 | 74 185 109 281 208 132 250 Wait . | . . . . . . . Move 1094 | 50 161 92 277 203 123 188 Hop 4 | . . . . 3 . 1 Pick Up 26 | 9 7 3 2 1 4 . Fast Attach . | . . . . . . . Attach 18 | 7 3 . 1 1 5 1 Detach 5 | . 2 . . . . 3 Swap 3 | . 1 2 . . . . Drop 10 | . 5 3 1 . . 1 Fire 23 | 8 6 9 . . . . Melee . | . . . . . . . Ram . | . . . . . . . Kick . | . . . . . . . Crush . | . . . . . . . Escape Stasis 56 | . . . . . . 56 Rewire . | . . . . . . . Trap . | . . . . . . . Miscellaneous . | . . . . . . . Route ------- -11/Scrapyard -10/Materials -10/Mines -10/Exiles -9/Mines -8/Materials -8/Garrison (discovered 1 exit: [*Fac]) History --------- Turn | Location | Event 11 | -11/Scrapyard | Discovered new exit (range 15) 116 | -11/Scrapyard | Entered Materials 259 | -10/Materials | Discovered new exit (range 8) 263 | -10/Materials | Entered Mines 319 | -10/Mines | Learned location of Storage (-8) 327 | -10/Mines | Deemed a non-threat by the Exiles lab entrance 327 | -10/Mines | Discovered new exit (range 5) 328 | -10/Mines | Entered Exiles 338 | -10/Exiles | Met 8R-AWN 344 | -10/Exiles | Met EX-HEX 358 | -10/Exiles | Met EX-BIN 366 | -10/Exiles | Aligned with FarCom system 366 | -10/Exiles | Given EX-Vault access code 381 | -10/Exiles | Opened EX-Vault 383 | -10/Exiles | Found Prototype Device 384 | -10/Exiles | Identified Chronowheel 384 | -10/Exiles | Activated Chronowheel 384 | -10/Exiles | Spacetime reconverged on an earlier point 395 | -10/Exiles | Found Skeleton Box 401 | -10/Exiles | Exiles lab attacked by MAIN.C 430 | -10/Exiles | Discovered new exit (range 14) 434 | -10/Exiles | Left Exiles lab with Skeleton Box 434 | -10/Exiles | Entered Mines 441 | -9/Mines | Met a Derelict bent on vengeance 444 | -9/Mines | Found a hidden stash of uninstalled traps 465 | -9/Mines | Assembled infested the area 510 | -9/Mines | Discovered new exit (range 12) 514 | -9/Mines | Entered Materials 514 | -8/Materials | Evolved 4 slots: Power x1, Propulsion x2, Utility x1 520 | -8/Materials | Lost 4 parts (1p1n1u1w) 566 | -8/Materials | Identified exit to Garrison 567 | -8/Materials | Entered Garrison 663 | -8/Garrison | Triggered checkpoint 663 | -8/Garrison | Discovered new exit (range 10) 668 | -8/Garrison | Attempted to access garrison exit controls, blocked by remote lockdown 701 | -8/Garrison | Triggered checkpoint 701 | -8/Garrison | Triggered checkpoint 702 | -8/Garrison | Self-destructed Last Messages --------------- 00659_ Field strength at 10. 00660_ Field strength at 5. 00661_ Stasis field depleted. 00663_ Beams of light sweep through the air. An alarm sounds. 00663_ Flight Unit destroyed. 00663_ EXIT=FOUND 00667_ Flight Unit destroyed. 00668_ Attempting to access garrison exit controls... 00668_ Remote lockdown engaged. 00670_ Lgt. Assault Rifle destroyed. 00670_ Critical hit (Burn: +37). 00680_ Flight Unit destroyed. 00695_ Dropped Lgt. Nuclear Core. 00700_ Triggered Stasis Trap. 00700_ A bubble of rippling energy engulfs the area. 00700_ Field strength at 95. 00700_ Field strength at 90. 00701_ Beams of light sweep through the air. An alarm sounds. 00701_ Field strength at 82. [Achievement: Achiever] Map ----- +----------------------------------------------------+ | #????????????????????????????????? | | #????????????????????????????????? | | #????????????????????????????????? | | ###### ###### #????????????????????????????????? | | ?????# #????# #????????????????????????????????? | | ?????# #????# #????????????????????????????????? | | ?????# ###### #????????????????????????????????? | | ?????# #????????????????????????????????? | | ?????######## #????????????????????????????????? | | ????????????# #????????????????????????????????? | | ????????????# #??????? #???g??g??????????????? | | ????????????# #??????? #?????????????????????? | | ????????????# #?ssss?# #?????????????????????? | | ????????????# ##""""## #?????????????????????? | | ????????????# #?????????????????????? | | ????????????# #?????????????????????? | | ????????????# #?????????????????????? | | ????????????# ## ## #?????????????????????? | | ????????????# ## ## ###???????????????????? | | ????????????" s#???????????????????? | | ???????????C" s#???????????????????? | | ????????????" ????????????????????? | | ????????????" s ?????????????????????? | | ????????????# ## ## s#?????????????????????? | | ????????????# ## ## ############??????????? | | ??????? @ #??????????? | | ?????? #???????#### | | ???????###### s #?????### # | | ????????????###### s ############# * #?????#"# " | | ?????????????????#ss ?????????????# #?????#" " | | ?????????????????###??????????????# #??????" " | | ??????????????????????????????????# #??????? " | | ??????????????????????????????????# #???????# " | | ??????????????????????????????????# #???????# # | | ??????????????????????????????????#gg ######### # | | ??????????????????????????????????g | | ??????????????????????????????????# | | ??????????????????????????????????# ^ ############ | | ??????????????????????????????????#^ #??????????? | | ??????????????????????????????????# #??????????? | | ??????????????????????????????????#^^ #??????????? | | ??????????????????????????????????# ^^#??????????? | | ??????????????????????????????????# #??????????? | | ??????????????????????????????????# #??????????? | | ????????????????????????????????### #??????????? | | ????????????????????????????????# #??????????? | | ????????????????????????????????# #??????????? | | ????????????????????????????????# #??????????? | | ????????????????????????????????### #??????????? | | ??????????????????????????????????# #??????????? | +----------------------------------------------------+ Best States ------------- Heat Dissipation 45 Energy Generation 14 Energy Capacity 250 Matter Stores 300 Matter Capacity 300 Sight Range 16 Terrain Scan Density 10 Power Shielding 66 Evasion (%) 63 Recoil Reduction 2 Item Schematics ----------------- None Robot Schematics ------------------ None Fabricated ------------ Nothing Alien Tech Used ----------------- None Achievements -------------- Achiever Slippery One Challenges ------------ None Game ------ Seed NeutronCloakClaws Manual? 0 Play Time 00:12:09 Cumulative 21.5 hours Start 2025.01.19 @ 13:39:21 End 2025.01.19 @ 13:51:54 Sessions 1 Manual Loads 0 Difficulty Rogue Special Mode None Game No. 92 Rogue 92 Adventurer 0 Explorer 0 Win Type - Total 0 Types 0/0/0/0/0/0/0/0/0 Lore% 19 Gallery% 23 Achievement% 25 Wizard Run 0 Options --------- Layout 0 ASCII 0 Keyboard 0 Movement Mouse Keybinds 0 Fullscreen 1 Font 18/SmallcapsGlow Map View 38x25 Zoom Use 100% Tactical HUD 1 Map Filters NONE Filters NONE Steam 1 RUN: 7b39e727-f544-454c-8bc6-5ef98a9b3e0a